fUST/lending_fUST_20250722
["ID","MTS","AMOUNT","RATE_DAILY","PERIOD"]
[373966060,1753164653671,-648.0,0.00022413,2]
[373966062,1753164653680,-2157.0,0.00022413,2]
[373966064,1753164653690,-968.0,0.00022413,2]
[373966066,1753164653700,-407.0,0.00022423,2]
[373966068,1753164653710,-168.0,0.00022426,2]
[373966070,1753164653720,-235.534883,0.0002243,8]
[373966072,1753164653730,-2992.0,0.00022465,2]
[373966074,1753164653740,-645.62,0.00022473,2]
[373966076,1753164653749,-1442.99,0.00022475,2]
[373966078,1753164653760,-911.11,0.00022475,2]
[373966080,1753164653770,-2099.66,0.00022476,2]
[373966082,1753164653779,-1079.82,0.00022476,2]
[373966084,1753164653788,-584.31,0.00022526,2]
[373966086,1753164653798,-859.05,0.00022526,2]
[373966088,1753164653807,-160.4,0.00022537,5]
[373966090,1753164653816,-559.59,0.0002258,2]
[373966092,1753164653826,-737.93,0.00022584,2]
[373966094,1753164653835,-640.41,0.00022584,2]
[373966096,1753164653844,-1373.43,0.00022584,2]
[373966098,1753164653853,-578.96,0.00022584,2]
[373966100,1753164653862,-1065.29,0.00022584,2]
[373966102,1753164653871,-275.22965,0.00022603,2]
[373966104,1753164653880,-645.62,0.00022747,2]
[373966106,1753164653890,-1442.99,0.00022749,2]
[373966107,1753164653899,-911.11,0.00022749,2]
[373966110,1753164653909,-2099.66,0.0002275,2]
[373966111,1753164653918,-1079.82,0.0002275,2]
[373966113,1753164653928,-235.60647418,0.00022751,2]
[373966115,1753164653937,-168.0,0.00022771,2]
[373966117,1753164653946,-584.31,0.000228,2]
[373966119,1753164653956,-643.0,0.000228,2]
[373966121,1753164653966,-859.05,0.000228,2]
[373966123,1753164653975,-559.59,0.00022854,2]
[373966125,1753164653985,-737.93,0.00022858,2]
[373966127,1753164653994,-640.41,0.00022858,2]
[373966129,1753164654004,-1373.43,0.00022858,2]
[373966131,1753164654014,-578.96,0.00022858,2]
[373966133,1753164654024,-1065.29,0.00022858,2]
[373966135,1753164654033,-198.53213712,0.00022861,2]
[373966137,1753164654043,-151.0,0.00022861,2]
[373966139,1753164654052,-500.0,0.00022861,2]
[373966141,1753164654061,-151.0,0.00022861,2]
[373966142,1753164654071,-500.0,0.00022861,2]
[373966144,1753164654081,-151.0,0.00022861,2]
[373966146,1753164654090,-151.0,0.00022861,2]
[373966148,1753164654099,-220.17848307,0.00022861,2]
[373966150,1753164654110,-151.0,0.00022861,2]
[373966152,1753164654120,-151.0,0.00022861,2]
[373966154,1753164654130,-512.46627473,0.00022873,2]
[373966156,1753164654140,-500.0,0.00022877,2]
[373966158,1753164654150,-256637.13367659,0.00022878,2]
[373966160,1753164654160,-500.0,0.00022887,2]
[373966162,1753164654169,-151.0,0.00022888,7]
[373966163,1753164654179,-151.0,0.00022888,7]
[373966165,1753164654189,-151.0,0.00022888,7]
[373966167,1753164654199,-152.175719,0.00022888,7]
[373966169,1753164654209,-151.0,0.00022888,7]
[373966171,1753164654218,-151.0,0.00022888,7]
[373966173,1753164654228,-151.0,0.00022888,7]
[373966175,1753164654237,-151.0,0.00022888,7]
[373966177,1753164654247,-151.0,0.00022888,7]
[373966179,1753164654258,-151.0,0.00022888,7]
[373966181,1753164654268,-151.0,0.00022888,7]
[373966183,1753164654277,-151.0,0.00022888,7]
[373966185,1753164654287,-151.0,0.00022888,7]
[373966187,1753164654296,-160.4,0.00022888,6]
[373966189,1753164654306,-315.54842336,0.00022888,2]
[373966191,1753164654316,-1034.111723,0.00022888,7]
[373966193,1753164654325,-1034.111723,0.00022888,7]
[373966195,1753164654335,-151.0,0.00022888,7]
[373966197,1753164654344,-1809.33,0.000229,2]
[373966199,1753164654354,-152.614176,0.000229,7]
[373966201,1753164654363,-151.0,0.000229,7]
[373966202,1753164654373,-151.0,0.000229,7]
[373966204,1753164654382,-2130.17,0.000229,7]
[373966206,1753164654391,-3516.28,0.000229,7]
[373966208,1753164654400,-1967.5,0.000229,7]
[373966210,1753164654410,-12619.94447631,0.000229,7]
[373966212,1753164654419,-160.0,0.000229,7]
[373966214,1753164654428,-476.60259688,0.000229,7]
[373966216,1753164654438,-214.6393183,0.000229,7]
[373966218,1753164654447,-1178.207867,0.0002292,5]
[373966220,1753164654456,-2576.45866819,0.00022929,2]
[373966222,1753164654466,-1000.0,0.0002294,5]
[373966224,1753164654475,-1000.0,0.0002296,5]
[373966226,1753164654485,-150.0,0.00022973,2]
[373966227,1753164654495,-2151.46,0.00022975,4]
[373966229,1753164654505,-1000.0,0.0002298,5]
[373966231,1753164654515,-168.0,0.00023,2]
[373966233,1753164654524,-215.75719967,0.00023,3]
[373966235,1753164654534,-160.0,0.00023,3]
[373966237,1753164654543,-1964.9932199,0.00023,2]
[373966239,1753164654553,-1336.01403204,0.00023,2]
[373966241,1753164654563,-2141.0,0.00023,15]
[373966243,1753164654576,-346.57287143,0.00023,2]
[373966245,1753164654586,-11273.27240124,0.00023,7]
[373966257,1753164654708,-500.0,0.00023,7]
[373966259,1753164654720,-9352.93178592,0.00023,7]
[373966261,1753164654732,-1580.98448565,0.00023,7]
[373966263,1753164654744,-6784.56189057,0.00023,7]
[373966266,1753164654757,-15517.07947574,0.00023,7]
[373966270,1753164655588,-500.0,0.00016717,2]
[373966271,1753164655598,-500.0,0.00016717,2]
[373966272,1753164655608,-500.0,0.00016717,2]
[373966273,1753164655618,-500.0,0.00016717,2]
[373966274,1753164655627,-500.0,0.00016717,2]
[373966275,1753164655637,-500.0,0.00016717,2]
[373966276,1753164655647,-646.32915357,0.00016717,2]
[373966277,1753164655657,-500.0,0.00016717,2]
[373966278,1753164655667,-500.0,0.00016717,2]
[373966279,1753164655677,-500.0,0.00016717,2]
[373966280,1753164655686,-500.0,0.00016717,2]
[373966281,1753164655697,-500.0,0.00016717,2]
[373966282,1753164655707,-500.0,0.00016717,2]
[373966283,1753164655717,-500.0,0.00016717,2]
[373966284,1753164655727,-500.0,0.00016717,2]
[373966285,1753164655736,-500.0,0.00016717,2]
[373966286,1753164655746,-500.0,0.00016717,2]
[373966287,1753164655758,-500.0,0.00016717,2]
[373966288,1753164655768,-500.0,0.00016717,2]
[373966289,1753164655778,-500.0,0.00016717,2]
[373966290,1753164655787,-500.0,0.00016717,2]
[373966291,1753164655796,-500.0,0.00016717,2]
[373966292,1753164655807,-500.0,0.00016717,2]
[373966293,1753164655816,-500.0,0.00016717,2]
[373966294,1753164655826,-500.0,0.00016717,2]
[373966295,1753164655836,-500.0,0.00016717,2]
[373966296,1753164655845,-500.0,0.00016717,2]
[373966297,1753164655855,-500.0,0.00016717,2]
[373966298,1753164655864,-500.0,0.00016717,2]
[373966299,1753164655874,-500.0,0.00016717,2]
[373966300,1753164655885,-500.0,0.00016717,2]
[373966302,1753164655895,-500.0,0.00016717,2]
[373966303,1753164655906,-500.0,0.00016717,2]
[373966304,1753164655916,-500.0,0.00016717,2]
[373966305,1753164655926,-500.0,0.00016717,2]
[373966307,1753164655936,-500.0,0.00016717,2]
[373966309,1753164655946,-500.0,0.00016717,2]
[373966311,1753164655955,-500.0,0.00016717,2]
[373966313,1753164655965,-500.0,0.00016717,2]
[373966314,1753164655974,-500.0,0.00016717,2]
[373966315,1753164655983,-542.29383993,0.00016717,2]
[373966316,1753164655993,-500.0,0.00016717,2]
[373966317,1753164656003,-500.0,0.00016717,2]
[373966318,1753164656013,-500.0,0.00016717,2]
[373966319,1753164656023,-500.0,0.00016717,2]
[373966320,1753164656032,-500.0,0.00016717,2]
[373966321,1753164656042,-500.0,0.00016717,2]
[373966322,1753164656052,-500.0,0.00016717,2]
[373966323,1753164656062,-500.0,0.00016717,2]
[373966324,1753164656072,-500.0,0.00016717,2]
[373966325,1753164656082,-500.0,0.00016717,2]
[373966326,1753164656091,-500.0,0.00016717,2]
[373966327,1753164656100,-500.0,0.00016717,2]
[373966328,1753164656110,-500.0,0.00016717,2]
[373966329,1753164656120,-500.0,0.00016717,2]
[373966330,1753164656130,-500.0,0.00016717,2]
[373966331,1753164656140,-565.2344065,0.00016717,2]
[373966332,1753164656149,-500.0,0.00016717,2]
[373966333,1753164656159,-500.0,0.00016717,2]
[373966334,1753164656168,-500.0,0.00016717,2]
[373966335,1753164656179,-500.0,0.00016717,2]
[373966336,1753164656188,-500.0,0.00016717,2]
[373966337,1753164656197,-500.0,0.00016717,2]
[373966338,1753164656208,-500.0,0.00016717,2]
[373966339,1753164656218,-500.0,0.00016717,2]
[373966340,1753164656228,-500.0,0.00016717,2]
[373966341,1753164656238,-500.0,0.00016717,2]
[373966342,1753164656248,-500.0,0.00016717,2]
[373966343,1753164656259,-172.35634301,0.00016717,2]
[373966344,1753164656296,-327.64365699,0.00016717,2]
[373966345,1753164656306,-40.79397489,0.00016717,2]
[373966346,1753164656318,-459.20602511,0.00016717,2]
[373966347,1753164656328,-500.0,0.00016717,2]
[373966348,1753164656338,-500.0,0.00016717,2]
[373966349,1753164656349,-360.94763112,0.00016717,2]
[373966351,1753164656656,-139.05236888,0.00016717,2]
[373966352,1753164656666,-500.0,0.00016717,2]
[373966353,1753164656676,-500.0,0.00016717,2]
[373966354,1753164656685,-500.0,0.00016717,2]
[373966355,1753164656695,-500.0,0.00016717,2]
[373966356,1753164656705,-500.0,0.00016717,2]
[373966357,1753164656715,-500.0,0.00016717,2]
[373966358,1753164656724,-351.37546483,0.00016717,2]
[373966359,1753164656736,-148.62453517,0.00016717,2]
[373966360,1753164656746,-113.62441283,0.00016717,2]
[373966361,1753164656762,-274.51751388,0.00016717,2]
[373966362,1753164656773,-111.85807329,0.00016717,2]
[373966363,1753164656782,-500.0,0.00016717,2]
[373966364,1753164656792,-500.0,0.00016717,2]
[373966365,1753164656801,-85.33013082,0.00016717,2]
[373966366,1753164656838,-414.66986918,0.00016717,2]
[373966367,1753164656847,-500.0,0.00016717,2]
[373966368,1753164656857,-203.39822607,0.00016717,2]
[373966369,1753164656871,-296.60177393,0.00016717,2]
[373966370,1753164656880,-71.86761927,0.00016717,2]
[373966371,1753164656939,-428.13238073,0.00016717,2]
[373966372,1753164656949,-500.0,0.00016717,2]
[373966373,1753164656958,-388.71713772,0.00016717,2]
[373966374,1753164656967,-500.0,0.00016717,2]
[373966375,1753164656977,-500.0,0.00016717,2]
[373966376,1753164656986,-500.0,0.00016717,2]
[373966377,1753164656995,-500.0,0.00016717,2]
[373966378,1753164657007,-500.0,0.00016717,2]
[373966379,1753164657018,-500.0,0.00016717,2]
[373966380,1753164657028,-500.0,0.00016717,2]
[373966381,1753164657037,-500.0,0.00016717,2]
[373966382,1753164657046,-500.0,0.00016717,2]
[373966383,1753164657055,-500.0,0.00016717,2]
[373966384,1753164657064,-500.0,0.00016717,2]
[373966385,1753164657073,-500.0,0.00016717,2]
[373966386,1753164657083,-245.69799594,0.00016717,2]
[373966387,1753164687647,184759.53254511,0.00016618,2]
[373966388,1753164725736,207.417206,0.00013699,2]
[373966390,1753164770172,181.59954767,0.00016616,2]
[373966392,1753164776313,-364.0,0.00016707,3]
[373966393,1753164776335,-364.0,0.00016707,3]
[373966394,1753164776356,-500.0,0.00016716,2]
[373966395,1753164776379,-500.0,0.00016716,2]
[373966396,1753164776400,-500.0,0.00016716,2]
[373966397,1753164776423,-500.0,0.00016716,2]
[373966398,1753164776444,-385.5605899,0.00016716,2]
[373966399,1753164776465,-500.0,0.00016716,2]
[373966400,1753164776486,-500.0,0.00016716,2]
[373966401,1753164776509,-405.14768373,0.00016716,2]
[373966402,1753164776530,-500.0,0.00016716,2]
[373966403,1753164776552,-500.0,0.00016716,2]
[373966404,1753164776574,-481.29172637,0.00016716,2]
[373966405,1753164854025,329330.38343874,0.00016618,2]
[373966406,1753164859897,1158.58636374,0.00016616,2]
[373966407,1753164934076,365.55562172,0.00016213,2]
[373966408,1753164990494,9043.90569431,0.00016622,2]
[373966409,1753165035650,252.14672398,0.00016614,2]
[373966411,1753165075688,263.6977964,0.00024657,60]
[373966412,1753165126761,202.39091256,0.00016615,2]
[373966413,1753165157561,370000.0,0.00016616,2]
[373966414,1753165205431,926.86909096,0.00016613,2]
[373966415,1753165235320,219.33337304,0.00016211,2]
[373966419,1753165280712,6029.27046288,0.00016614,2]
[373966421,1753165455586,220.6283835,0.00016611,2]
[373966422,1753165547998,741.4952728,0.0001661,2]
[373966423,1753165570991,4019.51364192,0.00016612,2]
[373966434,1753165703680,320.67,0.00016699,3]
[373966435,1753165714550,160.33,0.00016699,3]
[373966437,1753165725186,481.04,0.00016699,3]
[373966446,1753165821492,193.04983551,0.00016608,2]
[373966468,1753165832179,-460.0,0.00016707,2]
[373966469,1753165832190,-465.16202696,0.00016707,2]
[373966470,1753165832199,-460.0,0.00016707,2]
[373966471,1753165832209,-460.0,0.00016707,2]
[373966472,1753165832218,-300.0,0.00016707,2]
[373966473,1753165832228,-300.0,0.00016707,2]
[373966474,1753165832237,-300.0,0.00016707,2]
[373966475,1753165832246,-300.0,0.00016707,2]
[373966476,1753165832256,-300.0,0.00016707,2]
[373966477,1753165832265,-1200.0,0.00016707,2]
[373966478,1753165832274,-460.0,0.00016707,2]
[373966479,1753165832285,-460.0,0.00016707,2]
[373966480,1753165832294,-460.0,0.00016707,2]
[373966481,1753165832303,-460.0,0.00016707,2]
[373966482,1753165832314,-460.0,0.00016707,2]
[373966483,1753165832324,-460.0,0.00016707,2]
[373966484,1753165832334,-500.0,0.00016708,2]
[373966485,1753165832343,-500.0,0.00016708,2]
[373966486,1753165832353,-500.0,0.00016708,2]
[373966487,1753165832362,-500.0,0.00016708,2]
[373966488,1753165832372,-500.0,0.00016708,2]
[373966489,1753165832381,-2045.62093298,0.00016708,2]
[373966490,1753165832391,-500.0,0.00016708,2]
[373966491,1753165832401,-369.88899408,0.00016708,2]
[373966492,1753165832410,-500.0,0.00016708,2]
[373966493,1753165832420,-500.0,0.00016708,2]
[373966494,1753165832429,-500.0,0.00016708,2]
[373966495,1753165832439,-2045.62093298,0.00016708,2]
[373966496,1753165832449,-500.0,0.00016708,2]
[373966497,1753165832458,-500.0,0.00016708,2]
[373966498,1753165832468,-400.0,0.00016708,2]
[373966499,1753165832478,-2045.62093298,0.00016708,2]
[373966500,1753165832487,-500.0,0.00016708,2]
[373966501,1753165832497,-500.0,0.00016708,2]
[373966502,1753165832508,-500.0,0.00016708,2]
[373966503,1753165832518,-500.0,0.00016708,2]
[373966504,1753165832527,-2045.62093298,0.00016708,2]
[373966505,1753165832537,-500.0,0.00016708,2]
[373966506,1753165832546,-500.0,0.00016708,2]
[373966507,1753165832557,-500.0,0.00016708,2]
[373966508,1753165832567,-500.0,0.00016708,2]
[373966509,1753165832576,-2045.62093298,0.00016708,2]
[373966510,1753165832586,-500.0,0.00016708,2]
[373966511,1753165832596,-500.0,0.00016708,2]
[373966512,1753165832605,-2045.62093298,0.00016708,2]
[373966513,1753165832615,-592.98501402,0.00016708,2]
[373966514,1753165832624,-500.0,0.00016708,2]
[373966515,1753165832634,-2045.62093298,0.00016708,2]
[373966516,1753165832644,-500.0,0.00016708,2]
[373966517,1753165832655,-500.0,0.00016708,2]
[373966518,1753165832666,-500.0,0.00016708,2]
[373966519,1753165832675,-2045.62093298,0.00016708,2]
[373966520,1753165832685,-602.2041235,0.00016708,2]
[373966521,1753165832695,-500.0,0.00016708,2]
[373966522,1753165832704,-500.0,0.00016708,2]
[373966523,1753165832714,-500.0,0.00016708,2]
[373966524,1753165832725,-500.0,0.00016708,2]
[373966525,1753165832734,-2045.62093298,0.00016708,2]
[373966526,1753165832744,-500.0,0.00016708,2]
[373966527,1753165832754,-500.0,0.00016708,2]
[373966528,1753165832764,-2045.62093298,0.00016708,2]
[373966529,1753165832773,-500.0,0.00016708,2]
[373966530,1753165832785,-500.0,0.00016708,2]
[373966531,1753165832794,-500.0,0.00016708,2]
[373966532,1753165832804,-2045.62093298,0.00016708,2]
[373966533,1753165832813,-500.0,0.00016708,2]
[373966534,1753165832823,-500.0,0.00016708,2]
[373966535,1753165832833,-2045.62093298,0.00016708,2]
[373966536,1753165832842,-500.0,0.00016708,2]
[373966537,1753165832852,-500.0,0.00016708,2]
[373966538,1753165832861,-2045.62093298,0.00016708,2]
[373966539,1753165832875,-500.0,0.00016708,2]
[373966540,1753165832884,-2045.62093298,0.00016708,2]
[373966541,1753165832894,-2045.62093298,0.00016708,2]
[373966542,1753165832904,-580.7417331,0.00016708,2]
[373966543,1753165832914,-2045.62093298,0.00016708,2]
[373966544,1753165832924,-500.0,0.00016708,2]
[373966545,1753165832933,-2045.62093298,0.00016708,2]
[373966546,1753165832945,-500.0,0.00016708,2]
[373966547,1753165832955,-2045.62093298,0.00016708,2]
[373966548,1753165832964,-500.0,0.00016708,2]
[373966549,1753165832974,-2045.62093298,0.00016708,2]
[373966550,1753165832983,-500.0,0.00016708,2]
[373966551,1753165832993,-2045.62093298,0.00016708,2]
[373966552,1753165833002,-500.0,0.00016708,2]
[373966553,1753165833012,-500.0,0.00016708,2]
[373966554,1753165833022,-2045.62093298,0.00016708,2]
[373966555,1753165833034,-2045.62093298,0.00016708,2]
[373966556,1753165833043,-500.0,0.00016708,2]
[373966557,1753165833054,-500.0,0.00016708,2]
[373966558,1753165833064,-2045.62093298,0.00016708,2]
[373966559,1753165833073,-2045.62093298,0.00016708,2]
[373966560,1753165833083,-500.0,0.00016708,2]
[373966561,1753165833093,-500.0,0.00016708,2]
[373966562,1753165833103,-2045.62093298,0.00016708,2]
[373966563,1753165833113,-500.0,0.00016708,2]
[373966564,1753165833123,-2045.62093298,0.00016708,2]
[373966565,1753165833138,-2045.62093298,0.00016708,2]
[373966566,1753165833152,-500.0,0.00016708,2]
[373966567,1753165833166,-2045.62093298,0.00016708,2]
[373966568,1753165833180,-500.0,0.00016708,2]
[373966569,1753165833193,-2045.62093298,0.00016708,2]
[373966570,1753165833205,-500.0,0.00016708,2]
[373966571,1753165833217,-2045.62093298,0.00016708,2]
[373966572,1753165833231,-2045.62093298,0.00016708,2]
[373966573,1753165833243,-2045.62093298,0.00016708,2]
[373966574,1753165833257,-2045.62093298,0.00016708,2]
[373966575,1753165833270,-2045.62093298,0.00016708,2]
[373966576,1753165833283,-2045.62093298,0.00016708,2]
[373966577,1753165833296,-2045.62093298,0.00016708,2]
[373966578,1753165833310,-2045.62093298,0.00016708,2]
[373966579,1753165833324,-2045.62093298,0.00016708,2]
[373966580,1753165833338,-2045.62093298,0.00016708,2]
[373966581,1753165833351,-2045.62093298,0.00016708,2]
[373966582,1753165833363,-2045.62093298,0.00016708,2]
[373966583,1753165833375,-2045.62093298,0.00016708,2]
[373966584,1753165833388,-2045.62093298,0.00016708,2]
[373966585,1753165833400,-2045.62093298,0.00016708,2]
[373966586,1753165833413,-2045.62093298,0.00016708,2]
[373966587,1753165833425,-191.69867505,0.00016708,2]
[373966588,1753165833442,-1853.92225793,0.00016708,2]
[373966589,1753165833454,-2045.62093298,0.00016708,2]
[373966590,1753165833466,-2045.62093298,0.00016708,2]
[373966591,1753165833476,-2045.62093298,0.00016708,2]
[373966592,1753165833487,-2045.62093298,0.00016708,2]
[373966593,1753165833500,-500.0,0.00016708,2]
[373966594,1753165833512,-500.0,0.00016708,2]
[373966595,1753165833524,-469.34790659,0.00016708,2]
[373966596,1753165833537,-500.0,0.00016708,2]
[373966597,1753165833550,-500.0,0.00016708,2]
[373966598,1753165833562,-500.0,0.00016708,2]
[373966599,1753165833574,-500.0,0.00016708,2]
[373966600,1753165833587,-500.0,0.00016708,2]
[373966601,1753165833600,-500.0,0.00016708,2]
[373966602,1753165833614,-522.041235,0.00016708,2]
[373966603,1753165833627,-500.0,0.00016708,2]
[373966604,1753165833638,-500.0,0.00016708,2]
[373966605,1753165833649,-500.0,0.00016708,2]
[373966606,1753165833660,-500.0,0.00016708,2]
[373966607,1753165833671,-500.0,0.00016708,2]
[373966608,1753165833684,-500.0,0.00016708,2]
[373966609,1753165833699,-621.44277933,0.00016708,2]
[373966610,1753165833711,-500.0,0.00016708,2]
[373966611,1753165833724,-500.0,0.00016708,2]
[373966612,1753165833735,-500.0,0.00016708,2]
[373966613,1753165833747,-500.0,0.00016708,2]
[373966614,1753165833758,-231.1935259,0.00016708,2]
[373966615,1753165833770,-500.0,0.00016708,2]
[373966616,1753165833782,-500.0,0.00016708,2]
[373966617,1753165833793,-500.0,0.00016708,2]
[373966618,1753165833804,-500.0,0.00016708,2]
[373966619,1753165833816,-500.0,0.00016708,2]
[373966620,1753165833827,-500.0,0.00016708,2]
[373966621,1753165833838,-500.0,0.00016708,2]
[373966622,1753165833852,-500.0,0.00016708,2]
[373966623,1753165833864,-387.1649111,0.00016708,2]
[373966624,1753165833879,-500.0,0.00016708,2]
[373966625,1753165833891,-500.0,0.00016708,2]
[373966626,1753165833902,-2227.82887789,0.00016708,2]
[373966627,1753165833915,-500.0,0.00016708,2]
[373966628,1753165833927,-2227.82887789,0.00016708,2]
[373966629,1753165833939,-2227.82887789,0.00016708,2]
[373966630,1753165833953,-500.0,0.00016708,2]
[373966631,1753165833965,-2227.82887789,0.00016708,2]
[373966632,1753165833977,-500.0,0.00016708,2]
[373966633,1753165833988,-2227.82887789,0.00016708,2]
[373966634,1753165833999,-2227.82887789,0.00016708,2]
[373966635,1753165834011,-2227.82887789,0.00016708,2]
[373966636,1753165834022,-2227.82887789,0.00016708,2]
[373966637,1753165834032,-2227.82887789,0.00016708,2]
[373966638,1753165834045,-2227.82887789,0.00016708,2]
[373966639,1753165834056,-2227.82887789,0.00016708,2]
[373966640,1753165834067,-2227.82887789,0.00016708,2]
[373966641,1753165834078,-2227.82887789,0.00016708,2]
[373966642,1753165834089,-2227.82887789,0.00016708,2]
[373966643,1753165834099,-2227.82887789,0.00016708,2]
[373966644,1753165834111,-2227.82887789,0.00016708,2]
[373966645,1753165834123,-2227.82887789,0.00016708,2]
[373966646,1753165834134,-2227.82887789,0.00016708,2]
[373966647,1753165834145,-2227.82887789,0.00016708,2]
[373966648,1753165834156,-2227.82887789,0.00016708,2]
[373966649,1753165834167,-2227.82887789,0.00016708,2]
[373966650,1753165834178,-2227.82887789,0.00016708,2]
[373966651,1753165834190,-2227.82887789,0.00016708,2]
[373966652,1753165834201,-2227.82887789,0.00016708,2]
[373966653,1753165834212,-2227.82887789,0.00016708,2]
[373966654,1753165834223,-2227.82887789,0.00016708,2]
[373966655,1753165834234,-2227.82887789,0.00016708,2]
[373966656,1753165834246,-2227.82887789,0.00016708,2]
[373966657,1753165834257,-2227.82887789,0.00016708,2]
[373966658,1753165834268,-2227.82887789,0.00016708,2]
[373966659,1753165834279,-2227.82887789,0.00016708,2]
[373966660,1753165834293,-2227.82887789,0.00016708,2]
[373966661,1753165834304,-2227.82887789,0.00016708,2]
[373966662,1753165834315,-7.23442654,0.00016708,2]
[373966663,1753165834648,-2247.11622369,0.00016708,2]
[373966664,1753165834658,-648.79608918,0.00016708,2]
[373966699,1753165838473,-460.0,0.00016707,2]
[373966701,1753165838483,-1201.49465836,0.00016708,2]
[373966719,1753165838639,-48798.50534164,0.00016708,2]
[373966721,1753165838649,-464.47060538,0.00016708,2]
[373966723,1753165838659,-461.39722081,0.00016708,2]
[373966725,1753165838668,-460.0,0.00016708,2]
[373966727,1753165838677,-460.0,0.00016708,2]
[373966729,1753165838687,-460.0,0.00016708,2]
[373966731,1753165838696,-460.0,0.00016708,2]
[373966733,1753165838705,-460.0,0.00016708,2]
[373966735,1753165838715,-460.0,0.00016708,2]
[373966737,1753165838725,-460.0,0.00016708,2]
[373966739,1753165838734,-462.86783824,0.00016708,2]
[373966741,1753165838744,-460.0057042,0.00016708,2]
[373966743,1753165838753,-460.0,0.00016708,2]
[373966745,1753165838762,-461.5199479,0.00016708,2]
[373966747,1753165838772,-296.90467116,0.00016708,2]
[373966750,1753165838781,-460.0,0.00016708,2]
[373966751,1753165838792,-460.0,0.00016708,2]
[373966754,1753165838801,-460.0,0.00016708,2]
[373966755,1753165838810,-460.0,0.00016708,2]
[373966757,1753165838820,-460.0,0.00016708,2]
[373966760,1753165838829,-698.48,0.00016708,2]
[373966762,1753165838839,-460.0,0.00016708,2]
[373966764,1753165838848,-461.46223028,0.00016709,2]
[373966765,1753165838857,-460.0,0.00016709,2]
[373966767,1753165838868,-460.0,0.00016709,2]
[373966770,1753165838879,-1002.57953395,0.00016709,2]
[373966771,1753165838888,-460.0,0.00016709,2]
[373966773,1753165838898,-460.0,0.00016709,2]
[373966775,1753165838908,-460.0,0.00016709,2]
[373966777,1753165838918,-460.0,0.00016709,2]
[373966779,1753165838928,-594.88699619,0.00016709,2]
[373966781,1753165838937,-462.53203668,0.00016709,2]
[373966782,1753165838947,-460.0,0.00016709,2]
[373966784,1753165838956,-462.45996451,0.00016709,2]
[373966786,1753165838966,-460.77357237,0.00016709,2]
[373966788,1753165838975,-460.0,0.00016709,2]
[373966790,1753165838984,-460.0,0.00016709,2]
[373966792,1753165838994,-461.03742344,0.00016709,2]
[373966794,1753165839003,-460.0,0.0001671,2]
[373966796,1753165839012,-460.0,0.0001671,2]
[373966798,1753165839021,-460.0,0.0001671,2]
[373966800,1753165839031,-460.0,0.0001671,2]
[373966802,1753165839043,-460.0,0.0001671,2]
[373966804,1753165839052,-460.0,0.0001671,2]
[373966806,1753165839061,-154.94682192,0.0001671,2]
[373966808,1753165839071,-460.08426414,0.0001671,2]
[373966810,1753165839080,-460.0,0.0001671,2]
[373966812,1753165839089,-460.0,0.0001671,2]
[373966814,1753165839099,-460.0,0.0001671,2]
[373966816,1753165839109,-464.07346005,0.0001671,2]
[373966818,1753165839118,-468.60036054,0.0001671,2]
[373966820,1753165839127,-462.09058776,0.0001671,2]
[373966822,1753165839136,-460.0,0.0001671,2]
[373966824,1753165839146,-460.0,0.0001671,2]
[373966826,1753165839155,-1527.72,0.0001671,2]